bitfinex/quotes_BTCUSD_20240817
["timestamp","ask_amount","ask_price","bid_price","bid_amount"]
[1723886268949,0.002825,59373.0,59372.0,0.92480853]
[1723886274350,0.002825,59373.0,59372.0,1.00530853]
[1723886274559,0.002825,59373.0,59372.0,1.25795253]
[1723886274879,0.002825,59373.0,59372.0,1.00530853]
[1723886278564,0.002825,59373.0,59372.0,1.41565253]
[1723886278792,0.002825,59373.0,59372.0,1.43865253]
[1723886279592,0.002825,59373.0,59372.0,1.46198042]
[1723886279948,0.002825,59373.0,59372.0,1.47123449]
[1723886280158,0.002825,59373.0,59372.0,1.46197932]
[1723886281427,0.002825,59373.0,59372.0,1.43865253]
[1723886281981,0.002825,59373.0,59372.0,1.4619813]
[1723886282191,0.002825,59373.0,59372.0,1.43865253]
[1723886282399,0.002825,59373.0,59372.0,1.46198105]
[1723886283057,0.002825,59373.0,59372.0,1.43865253]
[1723886287226,0.080925,59373.0,59372.0,0.92480853]
[1723886287687,0.09074449,59373.0,59372.0,0.92480853]
[1723886290431,0.14131329,59373.0,59372.0,0.92480853]
[1723886290636,0.09074449,59373.0,59372.0,0.67216453]
[1723886290845,0.16659769,59373.0,59372.0,0.67179492]
[1723886291681,0.16659769,59373.0,59372.0,0.02127438]
[1723886291682,0.09074449,59373.0,59372.0,0.02127438]
[1723886291888,0.09074449,59373.0,59372.0,0.14759638]
[1723886292098,0.25238209,59373.0,59372.0,0.02127438]
[1723886292306,0.19882932,59373.0,59372.0,0.02127438]
[1723886292506,0.19882932,59373.0,59372.0,0.14759638]
[1723886292709,0.19782932,59373.0,59372.0,0.14159638]
[1723886293554,0.19782932,59373.0,59372.0,0.12759638]
[1723886293555,0.29796309,59373.0,59372.0,0.12759638]
[1723886293884,0.29896309,59373.0,59372.0,0.13759638]
[1723886294123,0.29996309,59373.0,59372.0,0.14259638]
[1723886294330,0.29896309,59373.0,59372.0,0.13259638]
[1723886294759,0.29996309,59373.0,59372.0,0.13859638]
[1723886294916,0.29896309,59373.0,59372.0,0.13359638]
[1723886295116,0.29996309,59373.0,59372.0,0.13759638]
[1723886295728,0.29996309,59373.0,59372.0,0.01127438]
[1723886296130,0.29996309,59373.0,59372.0,0.01027438]
[1723886296637,0.19882932,59373.0,59372.0,0.01027438]
[1723886296811,0.19882932,59373.0,59372.0,0.13659638]
[1723886297737,0.15124449,59373.0,59372.0,0.13659638]
[1723886299513,0.22705569,59373.0,59372.0,0.13659638]
[1723886304032,0.16655569,59373.0,59372.0,0.13659638]
[1723886305116,0.16655569,59373.0,59372.0,0.13759638]
[1723886306301,0.16653628,59373.0,59372.0,0.13759638]
[1723886306499,0.09074449,59373.0,59372.0,0.13759638]
[1723886306710,0.01264449,59373.0,59372.0,0.28359638]
[1723886316287,0.06316465,59373.0,59372.0,0.28359638]
[1723886316491,0.06316465,59373.0,59372.0,0.70816453]
[1723886316741,0.06316465,59373.0,59372.0,0.96080853]
[1723886316961,0.01264449,59373.0,59372.0,0.96080853]
[1723886327603,0.0110259,59373.0,59372.0,0.96080853]
[1723886328686,0.06154671,59373.0,59372.0,0.96080853]
[1723886329721,0.06157111,59373.0,59372.0,0.96080853]
[1723886331555,0.0110259,59373.0,59372.0,0.96080853]
[1723886332486,0.08684372,59373.0,59372.0,0.96080853]
[1723886335259,0.08766872,59373.0,59372.0,0.96080853]
[1723886335463,0.0118509,59373.0,59372.0,0.96080853]
[1723886335890,0.002825,59373.0,59372.0,0.96080853]
[1723886350562,0.10796212,59373.0,59372.0,0.96080853]
[1723886350823,0.06312137,59373.0,59372.0,0.96080853]
[1723886351038,0.01253431,59373.0,59372.0,0.96080853]
[1723886351251,0.01253431,59373.0,59372.0,1.45459952]
[1723886351425,0.01153431,59373.0,59372.0,1.4505954]
[1723886351628,0.000825,59373.0,59372.0,1.45385782]
[1723886351828,0.001825,59373.0,59372.0,1.45885782]
[1723886352149,0.000825,59373.0,59372.0,1.45685782]
[1723886352584,0.001825,59373.0,59372.0,1.4618573]
[1723886352786,0.000825,59373.0,59372.0,1.4568573]
[1723886353188,0.001825,59373.0,59372.0,1.4525954]
[1723886353387,0.000825,59373.0,59372.0,1.4475954]
[1723886354122,0.000825,59373.0,59372.0,1.4445954]
[1723886354325,0.000825,59373.0,59372.0,1.4525954]
[1723886354797,0.000825,59373.0,59372.0,1.44315253]
[1723886354798,0.001825,59373.0,59372.0,1.44315253]
[1723886355115,0.001825,59373.0,59372.0,1.45859524]
[1723886355327,0.001825,59373.0,59372.0,1.70179653]
[1723886355503,0.001825,59373.0,59372.0,1.72718272]
[1723886355712,0.001825,59373.0,59372.0,1.72523833]
[1723886356981,0.001825,59373.0,59372.0,1.72523818]
[1723886357803,0.001825,59373.0,59372.0,1.73538278]
[1723886359022,0.001825,59373.0,59372.0,1.7353817]
[1723886361377,0.001825,59373.0,59372.0,1.73732609]
[1723886361788,0.001825,59373.0,59372.0,1.75333364]
[1723886362003,0.001825,59373.0,59372.0,2.00797764]
[1723886362573,0.001825,59373.0,59372.0,2.08361589]
[1723886362775,0.001825,59373.0,59372.0,2.38771147]
[1723886363133,0.000825,59373.0,59372.0,1.99396323]
[1723886363331,0.001825,59373.0,59372.0,2.00296323]
[1723886363536,0.001825,59373.0,59372.0,1.95627652]
[1723886363750,0.000825,59373.0,59372.0,1.96127652]
[1723886363949,0.000825,59373.0,59372.0,1.99396299]
[1723886364150,0.000825,59373.0,59372.0,2.04428247]
[1723886364361,0.000825,59373.0,59372.0,2.03028247]
[1723886364557,0.000825,59373.0,59372.0,2.03502572]
[1723886364786,0.000825,59373.0,59372.0,2.04428272]
[1723886364986,0.000825,59373.0,59372.0,2.05828272]
[1723886365163,0.000825,59373.0,59372.0,2.00796324]
[1723886365362,0.000825,59373.0,59372.0,1.97896324]
[1723886365620,0.000825,59373.0,59372.0,1.99396324]
[1723886366175,0.000825,59373.0,59372.0,1.97996324]
[1723886366372,0.000825,59373.0,59372.0,1.97896324]
[1723886366859,0.000825,59373.0,59372.0,1.99296324]
[1723886367205,0.000825,59373.0,59372.0,2.00696324]
[1723886367422,0.000825,59373.0,59372.0,2.00796381]
[1723886367537,0.000825,59373.0,59372.0,1.99396381]
[1723886367937,0.000825,59373.0,59372.0,2.00796381]
[1723886368603,0.000825,59373.0,59372.0,2.00696381]
[1723886369178,0.000825,59373.0,59372.0,2.00401942]
[1723886370809,0.000825,59373.0,59372.0,2.00696381]
[1723886371328,0.000825,59373.0,59372.0,2.00796381]
[1723886372099,0.000825,59373.0,59372.0,2.00896381]
[1723886372920,0.000825,59373.0,59372.0,1.74031942]
[1723886373150,0.000825,59373.0,59372.0,1.46307442]
[1723886373486,0.000825,59373.0,59372.0,1.43964413]
[1723886373637,0.000825,59373.0,59372.0,1.69228813]
[1723886373829,0.000825,59373.0,59372.0,1.36837442]
[1723886374061,0.000825,59373.0,59372.0,1.33819713]
[1723886374264,0.000825,59373.0,59372.0,1.44215671]
[1723886374459,0.000825,59373.0,59372.0,1.43289713]
[1723886375238,0.000825,59373.0,59372.0,1.45589713]
[1723886375824,0.000825,59373.0,59372.0,1.46515686]
[1723886376026,0.000825,59373.0,59372.0,1.45589713]
[1723886376222,0.000825,59373.0,59372.0,1.46515685]
[1723886376799,0.000825,59373.0,59372.0,1.48859453]
[1723886379457,0.000825,59373.0,59372.0,1.74123853]
[1723886381337,0.000825,59373.0,59372.0,1.64653853]
[1723886381541,0.000825,59373.0,59372.0,1.74123853]
[1723886384008,0.000825,59373.0,59372.0,1.70854113]
[1723886384208,0.000825,59373.0,59372.0,1.74123513]
[1723886386869,0.000825,59373.0,59372.0,1.64653513]
[1723886387068,0.000825,59373.0,59372.0,1.71780011]
[1723886387228,0.000825,59373.0,59372.0,1.74123672]
[1723886388295,0.000825,59373.0,59372.0,1.74123679]
[1723886388711,0.000825,59373.0,59372.0,1.70854113]
[1723886388926,0.000825,59373.0,59372.0,1.74123678]
[1723886389134,0.000825,59373.0,59372.0,1.64653678]
[1723886389338,0.000825,59373.0,59372.0,1.48859278]
[1723886389770,0.000825,59373.0,59372.0,1.74123678]
[1723886392942,0.000825,59373.0,59372.0,1.66283678]
[1723886393343,0.000825,59373.0,59372.0,1.59863678]
[1723886394145,0.000825,59373.0,59372.0,1.34599278]
[1723886394340,0.081725,59373.0,59372.0,1.33584818]
[1723886394745,0.081725,59373.0,59372.0,1.58849218]
[1723886396085,0.081725,59373.0,59372.0,1.21814818]
[1723886396305,0.081725,59373.0,59372.0,1.20888873]
[1723886396746,0.081725,59373.0,59372.0,1.2088981]
[1723886397157,0.081725,59373.0,59372.0,1.1948981]
[1723886397364,0.000825,59373.0,59372.0,1.1948981]
[1723886397542,0.000825,59373.0,59372.0,1.2038981]
[1723886397754,0.000825,59373.0,59372.0,1.2178981]
[1723886397954,0.001825,59373.0,59372.0,1.2318981]
[1723886398168,0.001825,59373.0,59372.0,1.2178981]
[1723886398169,0.000825,59373.0,59372.0,1.2178981]
[1723886398344,0.000825,59373.0,59372.0,1.2048981]
[1723886398547,0.001825,59373.0,59372.0,1.2281616]
[1723886399444,0.001825,59373.0,59372.0,1.2271616]
[1723886399644,0.002825,59373.0,59372.0,1.2411616]
[1723886400474,0.002825,59373.0,59372.0,1.24116686]
[1723886400873,0.002825,59373.0,59372.0,1.21771784]
[1723886401054,0.002825,59373.0,59372.0,1.57171268]
[1723886401507,0.002825,59373.0,59372.0,1.57171266]
[1723886401708,0.002825,59373.0,59372.0,1.62215554]
[1723886401910,0.002825,59373.0,59372.0,1.57171266]
[1723886402108,0.002825,59373.0,59372.0,1.62216144]
[1723886402307,0.002825,59373.0,59372.0,1.66054274]
[1723886402468,0.002825,59373.0,59372.0,1.61009396]
[1723886402878,0.002825,59373.0,59372.0,1.6605434]
[1723886403483,0.002825,59373.0,59372.0,1.6605462]
[1723886403938,0.002825,59373.0,59372.0,1.6221649]
[1723886404150,0.002825,59373.0,59372.0,1.64739103]
[1723886404338,0.002825,59373.0,59372.0,1.6605489]
[1723886404509,0.002825,59373.0,59372.0,1.66054767]
[1723886404715,0.002825,59373.0,59372.0,1.62216702]
[1723886405295,0.002825,59373.0,59372.0,1.66054767]
[1723886405696,0.002825,59373.0,59372.0,1.62215917]
[1723886405852,0.002825,59373.0,59372.0,1.62315917]
[1723886406175,0.002825,59373.0,59372.0,1.61109273]
[1723886406415,0.002825,59373.0,59372.0,1.62215427]
[1723886407218,0.002825,59373.0,59372.0,1.57171208]
[1723886407396,0.002825,59373.0,59372.0,1.61009273]
[1723886407958,0.002825,59373.0,59372.0,1.57171208]
[1723886408163,0.002825,59373.0,59372.0,1.61009273]
[1723886408433,0.002825,59373.0,59372.0,1.57171208]
[1723886408639,0.002825,59373.0,59372.0,1.61009273]
[1723886408855,0.002825,59373.0,59372.0,1.61009111]
[1723886409269,0.002825,59373.0,59372.0,1.61008052]
[1723886409480,0.002825,59373.0,59372.0,1.62216371]
[1723886409683,0.002825,59373.0,59372.0,1.57170645]
[1723886409885,0.002825,59373.0,59372.0,1.62216557]
[1723886410089,0.00070639,59374.0,59373.0,0.88560961]
[1723886410264,0.00070639,59374.0,59373.0,1.30757407]
[1723886410672,0.00070639,59374.0,59373.0,1.56021407]
[1723886411431,0.00170639,59374.0,59373.0,1.62467319]
[1723886411607,0.00170639,59374.0,59373.0,1.57421407]
[1723886411783,0.00270639,59374.0,59373.0,1.63867319]
[1723886412147,0.00270639,59374.0,59373.0,1.58821407]
[1723886412591,0.00270639,59374.0,59373.0,1.33557407]
[1723886414668,0.00270639,59374.0,59373.0,1.35902218]
[1723886415137,0.00270639,59374.0,59373.0,1.33557509]
[1723886415665,0.00270639,59374.0,59373.0,1.30286415]
[1723886416325,0.00270639,59374.0,59373.0,1.33557488]
[1723886416562,0.00270639,59374.0,59373.0,1.33557478]
[1723886418509,0.00270639,59374.0,59373.0,1.33557496]
[1723886419185,0.00270639,59374.0,59373.0,1.30286415]
[1723886419390,0.00270639,59374.0,59373.0,1.3355751]
[1723886420453,0.07840639,59374.0,59373.0,1.3355751]
[1723886425592,0.14280639,59374.0,59373.0,1.3355751]
[1723886426448,0.14280639,59374.0,59373.0,1.31212803]
[1723886426594,0.14280639,59374.0,59373.0,1.33557236]
[1723886427805,0.14280639,59374.0,59373.0,1.30286415]
[1723886428010,0.14280639,59374.0,59373.0,1.33557187]
[1723886428365,0.14280639,59374.0,59373.0,1.32630889]
[1723886428524,0.14280639,59374.0,59373.0,1.33557187]
[1723886432179,0.14280639,59374.0,59373.0,1.30286415]
[1723886432380,0.14280639,59374.0,59373.0,1.33647938]
[1723886436676,0.14280639,59374.0,59373.0,1.33647978]
[1723886438893,0.07840639,59374.0,59373.0,1.33647978]
[1723886440708,0.07840639,59374.0,59373.0,1.33646987]
[1723886441511,0.07840639,59374.0,59373.0,1.32720958]
[1723886441703,0.07840639,59374.0,59373.0,1.33646976]
[1723886445031,0.07840639,59374.0,59373.0,1.33646955]
[1723886449482,0.00270639,59374.0,59373.0,1.33646955]
[1723886450032,0.00270639,59374.0,59373.0,1.33647164]
[1723886452271,0.00270639,59374.0,59373.0,1.30377165]
[1723886452428,0.00270639,59374.0,59373.0,1.33647254]
[1723886453696,0.00270639,59374.0,59373.0,1.33647256]
[1723886453900,0.00270639,59374.0,59373.0,1.35991268]
[1723886454109,0.00270639,59374.0,59373.0,1.32721151]
[1723886454272,0.00270639,59374.0,59373.0,1.35991279]
[1723886455178,0.00270639,59374.0,59373.0,1.33647293]
[1723886458000,0.00270639,59374.0,59373.0,1.3542591]
[1723886458205,0.00270639,59374.0,59373.0,1.3869588]
[1723886458533,0.00270639,59374.0,59373.0,1.38697117]
[1723886461064,0.00270639,59374.0,59373.0,1.38696983]
[1723886461348,0.00270639,59374.0,59373.0,1.38696899]
[1723886461886,0.00270639,59374.0,59373.0,1.36352883]
[1723886462140,0.00270639,59374.0,59373.0,1.38696628]
[1723886465140,0.00270639,59374.0,59373.0,1.51732867]
[1723886465381,0.00270639,59374.0,59373.0,1.47896917]
[1723886465622,0.00270639,59374.0,59373.0,1.73161039]
[1723886465854,0.00270639,59374.0,59373.0,1.59307555]
[1723886466111,0.00270639,59374.0,59373.0,1.77565731]
[1723886466367,0.00270639,59374.0,59373.0,1.84572198]
[1723886466602,0.00270639,59374.0,59373.0,1.5930879]
[1723886467848,0.00270639,59374.0,59373.0,1.8457279]
[1723886468635,0.00270639,59374.0,59373.0,2.07808467]
[1723886469260,0.00270639,59374.0,59373.0,2.17908677]
[1723886469461,3.9e-07,59377.0,59376.0,0.88556361]
[1723886469679,3.9e-07,59377.0,59376.0,1.50143729]
[1723886469825,3.9e-07,59377.0,59376.0,1.75600868]
[1723886470031,3.9e-07,59377.0,59376.0,1.99853272]
[1723886470931,3.9e-07,59377.0,59376.0,2.00862644]
[1723886471132,3.9e-07,59377.0,59376.0,1.99853272]
[1723886471512,3.9e-07,59377.0,59376.0,2.01253272]
[1723886471871,3.9e-07,59377.0,59376.0,2.02253272]
[1723886472077,3.9e-07,59377.0,59376.0,2.00853272]
[1723886472292,3.9e-07,59377.0,59376.0,1.99853272]
[1723886472689,3.9e-07,59377.0,59376.0,1.96019933]
[1723886472870,3.9e-07,59377.0,59376.0,2.01253272]
[1723886473032,3.9e-07,59377.0,59376.0,2.02254623]
[1723886473235,3.9e-07,59377.0,59376.0,1.99821284]
[1723886473634,3.9e-07,59377.0,59376.0,2.0365374]
[1723886473834,3.9e-07,59377.0,59376.0,2.0702874]
[1723886474241,3.9e-07,59377.0,59376.0,2.03195952]
[1723886474582,3.9e-07,59377.0,59376.0,2.13671359]
[1723886474748,3.9e-07,59377.0,59376.0,2.12638571]
[1723886475155,3.9e-07,59377.0,59376.0,2.11238571]
[1723886475509,3.9e-07,59377.0,59376.0,2.03195952]
[1723886475652,3.9e-07,59377.0,59376.0,1.77933252]
[1723886475912,3.9e-07,59377.0,59376.0,1.76533252]
[1723886476109,3.9e-07,59377.0,59376.0,1.75133252]
[1723886476310,3.9e-07,59377.0,59376.0,1.94283252]
[1723886476602,3.9e-07,59377.0,59376.0,1.95683102]
[1723886476951,3.9e-07,59377.0,59376.0,2.20945802]
[1723886477155,3.9e-07,59377.0,59376.0,1.95683102]
[1723886477558,3.9e-07,59377.0,59376.0,2.20945802]
[1723886477903,3.9e-07,59377.0,59376.0,2.19545802]
[1723886478057,3.9e-07,59377.0,59376.0,1.95683102]
[1723886478258,3.9e-07,59377.0,59376.0,1.94757681]
[1723886478476,3.9e-07,59377.0,59376.0,2.20945796]
[1723886478640,3.9e-07,59377.0,59376.0,1.95288657]
[1723886479321,3.9e-07,59377.0,59376.0,1.95488657]
[1723886479801,3.9e-07,59377.0,59376.0,1.95683096]
[1723886480017,3.9e-07,59377.0,59376.0,1.92308096]
[1723886481056,3.9e-07,59377.0,59376.0,2.17570796]
[1723886481337,3.9e-07,59377.0,59376.0,1.99861669]
[1723886481738,3.9e-07,59377.0,59376.0,2.32010515]
[1723886482250,3.9e-07,59377.0,59376.0,1.99861669]
[1723886482447,3.9e-07,59377.0,59376.0,2.31977461]
[1723886483003,3.9e-07,59377.0,59376.0,2.31974012]
[1723886483650,3.9e-07,59377.0,59376.0,1.99860297]
[1723886483847,3.9e-07,59377.0,59376.0,1.99760297]
[1723886484043,3.9e-07,59377.0,59376.0,1.82110297]
[1723886484451,3.9e-07,59377.0,59376.0,1.81910297]
[1723886485087,3.9e-07,59377.0,59376.0,1.74358096]
[1723886485759,3.9e-07,59377.0,59376.0,1.79391652]
[1723886485873,3.9e-07,59377.0,59376.0,1.79391721]
[1723886486078,3.9e-07,59377.0,59376.0,1.79391961]
[1723886486504,3.9e-07,59377.0,59376.0,1.80066561]
[1723886487043,3.9e-07,59377.0,59376.0,1.75032936]
[1723886487581,3.9e-07,59377.0,59376.0,1.800659]
[1723886488466,3.9e-07,59377.0,59376.0,1.75032936]
[1723886488853,3.9e-07,59377.0,59376.0,1.80165667]
[1723886489119,3.9e-07,59377.0,59376.0,1.80265667]
[1723886490095,3.9e-07,59377.0,59376.0,1.76997636]
[1723886490309,3.9e-07,59377.0,59376.0,1.80265585]
[1723886490731,3.9e-07,59377.0,59376.0,1.79340175]
[1723886491003,3.9e-07,59377.0,59376.0,1.8026567]
[1723886492419,3.9e-07,59377.0,59376.0,1.80265064]
[1723886493709,3.9e-07,59377.0,59376.0,1.80165064]
[1723886493916,3.9e-07,59377.0,59376.0,1.79770625]
[1723886494269,3.9e-07,59377.0,59376.0,1.79770578]
[1723886495085,3.9e-07,59377.0,59376.0,1.74738453]
[1723886497255,3.9e-07,59377.0,59376.0,1.77172398]
[1723886497401,3.9e-07,59377.0,59376.0,1.78572398]
[1723886497948,3.9e-07,59377.0,59376.0,1.82204523]
[1723886498752,3.9e-07,59377.0,59376.0,1.83604516]
[1723886499726,3.9e-07,59377.0,59376.0,1.74134516]
[1723886499853,0.07570039,59377.0,59376.0,1.29589691]
[1723886500056,0.07570039,59377.0,59376.0,1.11779799]
[1723886500448,0.07570039,59377.0,59376.0,1.10854351]
[1723886500646,0.07570039,59377.0,59376.0,1.11779799]
[1723886500843,0.07570039,59377.0,59376.0,1.10379799]
[1723886501113,0.07570039,59377.0,59376.0,1.09454351]
[1723886501295,0.07570039,59377.0,59376.0,1.11679799]
[1723886501507,0.07570039,59377.0,59376.0,1.09354351]
[1723886501707,0.07570039,59377.0,59376.0,1.22579799]
[1723886501876,0.07570039,59377.0,59376.0,1.20354351]
[1723886502075,0.07570039,59377.0,59376.0,1.21279799]
[1723886502355,0.07570039,59377.0,59376.0,1.22854351]
[1723886502577,0.07570039,59377.0,59376.0,1.23779799]
[1723886502702,0.07570039,59377.0,59376.0,1.19311815]
[1723886502903,0.07570039,59377.0,59376.0,1.22854325]
[1723886503303,0.07570039,59377.0,59376.0,1.22853561]
[1723886504514,3.9e-07,59377.0,59376.0,1.2285349]
[1723886505917,3.9e-07,59377.0,59376.0,1.37608698]
[1723886506296,3.9e-07,59377.0,59376.0,1.62871398]
[1723886509331,3.9e-07,59377.0,59376.0,1.6790491]
[1723886509951,3.9e-07,59377.0,59376.0,1.62871398]
[1723886510148,3.9e-07,59377.0,59376.0,1.6790491]
[1723886511245,3.9e-07,59377.0,59376.0,1.62870788]
[1723886512487,3.9e-07,59377.0,59376.0,2.02658699]
[1723886514068,3.9e-07,59377.0,59376.0,1.9510843]
[1723886514289,3.9e-07,59377.0,59376.0,1.9380843]
[1723886514692,3.9e-07,59377.0,59376.0,1.9520843]
[1723886515090,3.9e-07,59377.0,59376.0,2.02763733]
[1723886515298,3.9e-07,59377.0,59376.0,1.99222382]
[1723886515503,3.9e-07,59377.0,59376.0,2.02488371]
[1723886515702,3.9e-07,59377.0,59376.0,2.03888371]
[1723886515964,3.9e-07,59377.0,59376.0,2.02963436]
[1723886516270,3.9e-07,59377.0,59376.0,2.02488353]
[1723886516490,3.9e-07,59377.0,59376.0,1.9710765]
[1723886516633,3.9e-07,59377.0,59376.0,2.10906197]
[1723886516834,3.9e-07,59377.0,59376.0,2.00839172]
[1723886517032,3.9e-07,59377.0,59376.0,2.10906197]
[1723886517473,3.9e-07,59377.0,59376.0,2.09606197]
[1723886517842,3.9e-07,59377.0,59376.0,2.11006197]
[1723886518434,3.9e-07,59377.0,59376.0,2.01946197]
[1723886518636,3.9e-07,59377.0,59376.0,1.58409004]
[1723886518835,0.07970039,59377.0,59376.0,1.57821619]
[1723886519128,0.07970039,59377.0,59376.0,1.50265408]
[1723886519958,0.07970039,59377.0,59376.0,1.5026552]
[1723886520378,0.07970039,59377.0,59376.0,1.5782181]
[1723886520719,0.07970039,59377.0,59376.0,1.54555727]
[1723886520933,0.07970039,59377.0,59376.0,1.57821786]
[1723886521594,3.9e-07,59377.0,59376.0,1.50265496]
[1723886522603,3.9e-07,59377.0,59376.0,1.55303698]
[1723886522813,3.9e-07,59377.0,59376.0,1.55303637]
[1723886523002,3.9e-07,59377.0,59376.0,1.50265419]
[1723886525552,3.9e-07,59377.0,59376.0,1.49340497]
[1723886526973,3.9e-07,59377.0,59376.0,2.0325417]
[1723886527170,3.9e-07,59377.0,59376.0,1.70877709]
[1723886527580,3.9e-07,59377.0,59376.0,2.0326214]
[1723886528352,3.9e-07,59377.0,59376.0,2.03262039]
[1723886530192,3.9e-07,59377.0,59376.0,2.07093663]
[1723886530399,3.9e-07,59377.0,59376.0,2.09712734]
[1723886530599,3.9e-07,59377.0,59376.0,2.12431805]
[1723886530799,3.9e-07,59377.0,59376.0,1.99836451]
[1723886531561,3.9e-07,59377.0,59376.0,1.99636451]
[1723886531883,3.9e-07,59377.0,59376.0,2.248313]
[1723886532013,3.9e-07,59377.0,59376.0,2.234313]
[1723886532417,3.9e-07,59377.0,59376.0,2.23430765]
[1723886532656,3.9e-07,59377.0,59376.0,2.24830765]
[1723886532857,3.9e-07,59377.0,59376.0,2.23430765]
[1723886533056,3.9e-07,59377.0,59376.0,2.22030765]
[1723886533283,3.9e-07,59377.0,59376.0,2.23430765]
[1723886533530,3.9e-07,59377.0,59376.0,2.24830765]
[1723886534471,3.9e-07,59377.0,59376.0,2.25025204]
[1723886536446,3.9e-07,59377.0,59376.0,2.25023663]
[1723886536646,3.9e-07,59377.0,59376.0,1.92908624]
[1723886536799,3.9e-07,59377.0,59376.0,2.17921937]
[1723886537623,3.9e-07,59377.0,59376.0,2.2175025]
[1723886538530,3.9e-07,59377.0,59376.0,2.2242485]
[1723886538732,3.9e-07,59377.0,59376.0,2.28592239]
[1723886538959,3.9e-07,59377.0,59376.0,2.29516367]
[1723886539377,3.9e-07,59377.0,59376.0,2.04253667]
[1723886540071,3.9e-07,59377.0,59376.0,2.29516367]
[1723886541101,3.9e-07,59377.0,59376.0,2.29517297]
[1723886543130,3.9e-07,59377.0,59376.0,2.2334991]
[1723886543336,3.9e-07,59377.0,59376.0,2.29517298]
[1723886543668,3.9e-07,59377.0,59376.0,2.16443202]
[1723886543830,3.9e-07,59377.0,59376.0,2.16343202]
[1723886544076,3.9e-07,59377.0,59376.0,2.25813202]
[1723886544282,3.9e-07,59377.0,59376.0,2.51075902]
[1723886544485,3.9e-07,59377.0,59376.0,2.57019789]
[1723886545531,3.9e-07,59377.0,59376.0,2.53191476]
[1723886545725,3.9e-07,59377.0,59376.0,2.53217145]
[1723886545924,3.9e-07,59377.0,59376.0,2.53611584]
[1723886546320,3.9e-07,59377.0,59376.0,2.5321746]
[1723886546500,3.9e-07,59377.0,59376.0,2.5341746]
[1723886546703,3.9e-07,59377.0,59376.0,2.0440476]
[1723886546905,3.9e-07,59377.0,59376.0,1.64516956]
[1723886547164,3.9e-07,59377.0,59376.0,1.59482654]
[1723886547508,3.9e-07,59377.0,59376.0,1.99436363]
[1723886547824,3.9e-07,59377.0,59376.0,1.67034974]
[1723886548406,3.9e-07,59377.0,59376.0,1.47038534]
[1723886548607,3.9e-07,59377.0,59376.0,1.56508534]
[1723886549098,3.9e-07,59377.0,59376.0,1.64060374]
[1723886549250,3.9e-07,59377.0,59376.0,1.96464634]
[1723886549454,3.9e-07,59377.0,59376.0,2.02811115]
[1723886549853,3.9e-07,59377.0,59376.0,1.98981914]
[1723886550075,3.9e-07,59377.0,59376.0,2.05111115]
[1723886550278,3.9e-07,59377.0,59376.0,2.04982999]
[1723886550501,3.9e-07,59377.0,59376.0,2.15500907]
[1723886550636,3.9e-07,59377.0,59376.0,2.0310581]
[1723886550842,3.9e-07,59377.0,59376.0,2.02811371]
[1723886551469,3.9e-07,59377.0,59376.0,2.02811284]
[1723886551717,3.9e-07,59377.0,59376.0,2.12884574]
[1723886552133,3.9e-07,59377.0,59376.0,1.85441284]
[1723886552374,0.14480039,59377.0,59376.0,1.81612083]
[1723886552588,0.14480039,59377.0,59376.0,1.9863775]
[1723886555446,0.14480039,59377.0,59376.0,1.98637981]
[1723886556079,0.14480039,59377.0,59376.0,1.96298119]
[1723886556306,0.14480039,59377.0,59376.0,1.98637981]
[1723886557236,0.14480039,59377.0,59376.0,1.96298119]
[1723886557441,0.14480039,59377.0,59376.0,1.98637981]
[1723886559308,3.9e-07,59377.0,59376.0,1.98730495]
[1723886560738,3.9e-07,59377.0,59376.0,1.66364007]
[1723886560945,3.9e-07,59377.0,59376.0,1.58808678]
[1723886561191,3.9e-07,59377.0,59376.0,1.63845795]
[1723886562143,3.9e-07,59377.0,59376.0,1.58808678]
[1723886562467,3.9e-07,59377.0,59376.0,1.63845618]
[1723886562998,3.9e-07,59377.0,59376.0,1.58808678]
[1723886567420,3.9e-07,59377.0,59376.0,1.73338678]
[1723886568003,3.9e-07,59377.0,59376.0,1.73438678]
[1723886568216,3.9e-07,59377.0,59376.0,2.03747536]
[1723886568407,3.9e-07,59377.0,59376.0,2.09906243]
[1723886568586,5.9e-07,59378.0,59377.0,1.143117]
[1723886568770,5.9e-07,59378.0,59377.0,2.10223777]
[1723886568972,5.9e-07,59378.0,59377.0,1.97634443]
[1723886569166,5.9e-07,59378.0,59377.0,2.25877304]
[1723886569496,5.9e-07,59378.0,59377.0,2.22573988]
[1723886570295,5.9e-07,59378.0,59377.0,2.22673988]
[1723886571173,5.9e-07,59378.0,59377.0,2.25668427]
[1723886571534,5.9e-07,59378.0,59377.0,2.22868427]
[1723886571743,5.9e-07,59378.0,59377.0,2.24268091]
[1723886571938,5.9e-07,59378.0,59377.0,2.25668091]
[1723886572117,5.9e-07,59378.0,59377.0,2.24268091]
[1723886572318,5.9e-07,59378.0,59377.0,2.22868091]
[1723886572746,5.9e-07,59378.0,59377.0,2.24268091]
[1723886573318,5.9e-07,59378.0,59377.0,2.25668091]
[1723886574102,5.9e-07,59378.0,59377.0,2.25373652]
[1723886574321,5.9e-07,59378.0,59377.0,2.25473652]
[1723886574545,5.9e-07,59378.0,59377.0,2.25668091]
[1723886574947,0.00082559,59378.0,59377.0,2.25668091]
[1723886575153,0.00082559,59378.0,59377.0,2.12784668]
[1723886575356,0.00082559,59378.0,59377.0,2.12884668]
[1723886575847,0.00082559,59378.0,59377.0,2.22956771]
[1723886576059,0.00082559,59378.0,59377.0,2.22856771]
[1723886576828,0.00082559,59378.0,59377.0,2.22956771]
[1723886577526,0.00082559,59378.0,59377.0,2.22856771]
[1723886578501,0.00082559,59378.0,59377.0,2.12784668]
[1723886578696,0.00082559,59378.0,59377.0,2.22856973]
[1723886579455,0.00082559,59378.0,59377.0,2.25373652]
[1723886580284,0.00082559,59378.0,59377.0,2.18280509]
[1723886580440,0.00082559,59378.0,59377.0,2.2547336]
[1723886580885,0.00082559,59378.0,59377.0,1.80835005]
[1723886581091,0.00082559,59378.0,59377.0,2.25592333]
[1723886581298,0.00082559,59378.0,59377.0,2.25297894]
[1723886581489,0.00082559,59378.0,59377.0,2.25397894]
[1723886582310,0.00082559,59378.0,59377.0,2.12808142]
[1723886583065,0.000825,59383.0,59382.0,1.53917461]
[1723886583066,5.9e-07,59383.0,59382.0,1.53917461]
[1723886583249,5.9e-07,59383.0,59382.0,2.32297781]
[1723886583509,5.9e-07,59383.0,59382.0,2.57557881]
[1723886583683,5.9e-07,59383.0,59382.0,2.82093462]
[1723886583889,5.9e-07,59383.0,59382.0,2.73843725]
[1723886584120,5.9e-07,59383.0,59382.0,2.72835725]
[1723886584523,5.9e-07,59383.0,59382.0,2.74235725]
[1723886584727,5.9e-07,59383.0,59382.0,2.72835725]
[1723886584901,5.9e-07,59383.0,59382.0,2.74235725]
[1723886585131,5.9e-07,59383.0,59382.0,2.75635725]
[1723886585533,5.9e-07,59383.0,59382.0,2.66202866]
[1723886585744,5.9e-07,59383.0,59382.0,2.60357881]
[1723886586563,5.9e-07,59383.0,59382.0,2.76707881]
[1723886586764,5.9e-07,59383.0,59382.0,2.60357671]
[1723886588363,5.9e-07,59383.0,59382.0,2.56528654]
[1723886588687,5.9e-07,59383.0,59382.0,2.60357671]
[1723886589105,5.9e-07,59383.0,59382.0,2.56528654]
[1723886589567,5.9e-07,59383.0,59382.0,2.60357671]
[1723886589770,5.9e-07,59383.0,59382.0,2.56883364]